[Event "Forni di Sopra Dolomiti 2018"]
[Site "Forni di Sopra"]
[Date "2018.06.11"]
[Round "3.10"]
[White "Garofalo, Simone"]
[Black "Terao, Juliana Sayumi"]
[Result "0-1"]
[ECO "B42"]
[WhiteElo "2110"]
[BlackElo "2292"]
[Annotator "RC"]
[PlyCount "72"]
[EventDate "2018.??.??"]
[EventType "swiss"]
[EventCountry "ITA"]
[SourceTitle "playchess.com"]
[Source "ChessBase"]
[SourceQuality "1"]
[TimeControl "40/5400+30:1800+30"]

1. e4 {[%emt 0:01:30]} c5 {[%emt 0:01:00]} 2. Nf3 {[%emt 0:00:30]} e6 {[%emt 0:00:00]} 3. d4 {[%emt 0:00:30]} cxd4 {[%emt 0:00:00]} 4. Nxd4 {[%emt 0:00:00]} a6 {[%emt 0:00:00]} 5. Bd3 {[%emt 0:01:00]} Bc5 {[%emt 0:01:00]} 6. Nb3 {[%emt 0:00:00]} Be7 {[%emt 0:00:00]} 7. O-O {[%emt 0:00:00]} d6 {[%emt 0:01:00]} 8. Qe2 {[%emt 0:01:30]} Qc7 {[%emt 0:01:30]} 9. c4 {[%emt 0:01:30]} Nf6 {[%emt 0:00:30]} 10. Nc3 {[%emt 0:00:00]} Nbd7 {[%emt 0:00:30]} 11. f4 {[%emt 0:01:00]} h5 {[%emt 0:04:30]} 12. Bd2 {[%emt 0:07:30]} b6 {[%emt 0:14:30]} 13. Rae1 {[%emt 0:03:30]} Bb7 {[%emt 0:00:30]} 14. Nd4 {[%emt 0:05:30]} g6 {[%emt 0:06:30]} 15. b4 {[%emt 0:04:30]} Rg8 {[%emt 0:24:30]} 16. Nf3 {[%emt 0:09:30]} Rc8 {[%emt 0:07:30]} 17. a3 {[%emt 0:08:30]} Qb8 {[%emt 0:05:30]} 18. Nd5 {[%emt 0:05:30]} Bd8 {[%emt 0:00:00]} 19. Nc3 {[%emt 0:06:30]} Bc7 {[%emt 0:09:00]} 20. Kh1 {[%emt 0:07:30]} Bd8 {[%emt 0:00:30]} 21. Ng5 {[%emt 0:03:30]} Ng4 {[%emt 0:02:30]} 22. Nf3 {[%emt 0:03:30]} Be7 {[%emt 0:00:47]} 23. h3 {[%emt 0:02:30]} Ngf6 {[%emt 0:00:17]} 24. Qf2 {[%emt 0:05:30]} Bd8 {[%emt 0:10:57]} 25. Qe2 {[%emt 0:02:35]} h4 {[%emt 0:04:02]} 26. Qf2 {[%emt 0:03:03]} Rh8 {[%emt 0:00:19]} 27. Kg1 {[%emt 0:06:02]} b5 {[%emt 0:02:15]} 28. f5 {[%emt 0:04:47]} bxc4 {[%emt 0:00:22]} 29. fxe6 {[%emt 0:00:51]} fxe6 {[%emt 0:01:45]} 30. e5 {[%emt 0:01:46]} cxd3 {[%emt 0:00:07]} 31. exf6 {[%emt 0:00:11]} e5 {[%emt 0:00:32]} 32. f7+ {[%emt 0:01:37]} Kf8 {[%emt 0:00:04]} 33. Ne4 {[%emt 0:00:13]} Bb6 {[%emt 0:00:25]} 34. Be3 {[%emt 0:00:40]} Bxe4 {[%emt 0:00:32]} 35. Bxb6 {[%emt 0:01:21]} Bxf3 {[%emt 0:01:12]} 36. Be3 {[%emt 0:00:52]} Be2 {[%emt 0:00:32]} 0-1

[Event "Forni di Sopra Dolomiti 2018"]
[Site "Forni di Sopra"]
[Date "2018.06.11"]
[Round "3.12"]
[White "Dobboletta, Alex"]
[Black "Di Benedetto, Edoardo"]
[Result "1/2-1/2"]
[ECO "E04"]
[WhiteElo "2105"]
[BlackElo "2288"]
[Annotator "RC"]
[PlyCount "163"]
[EventDate "2018.??.??"]
[EventType "swiss"]
[EventCountry "ITA"]
[SourceTitle "playchess.com"]
[Source "ChessBase"]
[SourceQuality "1"]
[TimeControl "40/5400+30:1800+30"]

1. c4 {[%emt 0:00:30]} e6 {[%emt 0:01:00]} 2. Nf3 {[%emt 0:00:00]} d5 {[%emt 0:00:00]} 3. d4 {[%emt 0:00:00]} Nf6 {[%emt 0:00:00]} 4. g3 {[%emt 0:00:30]} dxc4 {[%emt 0:00:00]} 5. Bg2 {[%emt 0:00:30]} c5 {[%emt 0:00:00]} 6. O-O {[%emt 0:01:30]} Nc6 {[%emt 0:00:30]} 7. dxc5 {[%emt 0:00:30]} Qxd1 {[%emt 0:00:00]} 8. Rxd1 {[%emt 0:00:30]} Bxc5 {[%emt 0:00:00]} 9. Nbd2 {[%emt 0:00:30]} c3 {[%emt 0:00:30]} 10. bxc3 {[%emt 0:00:00]} O-O {[%emt 0:00:30]} 11. Nb3 {[%emt 0:02:00]} Be7 {[%emt 0:00:30]} 12. c4 {[%emt 0:01:30]} Bd7 {[%emt 0:08:30]} 13. Bb2 {[%emt 0:04:30]} Rfd8 {[%emt 0:00:30]} 14. Ne5 {[%emt 0:03:30]} Rac8 {[%emt 0:11:30]} 15. Nxd7 {[%emt 0:09:30]} Nxd7 {[%emt 0:02:30]} 16. Rac1 {[%emt 0:04:30]} Ndb8 {[%emt 0:29:30]} 17. Kf1 {[%emt 0:13:30]} Rxd1+ {[%emt 0:04:30]} 18. Rxd1 {[%emt 0:00:30]} Rd8 {[%emt 0:01:30]} 19. Rxd8+ {[%emt 0:04:30]} Bxd8 {[%emt 0:04:30]} 20. e3 {[%emt 0:04:30]} b6 {[%emt 0:09:30]} 21. Ke2 {[%emt 0:05:30]} Bf6 {[%emt 0:02:30]} 22. Bxf6 {[%emt 0:03:30]} gxf6 {[%emt 0:00:30]} 23. c5 {[%emt 0:00:30]} bxc5 {[%emt 0:01:30]} 24. Nxc5 {[%emt 0:00:30]} Kf8 {[%emt 0:01:30]} 25. Nd7+ {[%emt 0:07:30]} Ke7 {[%emt 0:01:30]} 26. Nxb8 {[%emt 0:04:30]} Nxb8 {[%emt 0:00:30]} 27. Kd3 {[%emt 0:00:30]} Kd6 {[%emt 0:00:30]} 28. Kc4 {[%emt 0:00:30]} Nd7 {[%emt 0:00:30]} 29. f4 {[%emt 0:06:30]} Nb6+ {[%emt 0:06:27]} 30. Kd4 {[%emt 0:06:13]} e5+ {[%emt 0:06:24]} 31. Ke4 {[%emt 0:01:11]} Nd5 {[%emt 0:01:02]} 32. a3 {[%emt 0:00:10]} Nb6 {[%emt 0:06:01]} 33. Kf5 {[%emt 0:05:48]} exf4 {[%emt 0:00:30]} 34. exf4 {[%emt 0:01:03]} Ke7 {[%emt 0:00:16]} 35. Bf1 {[%emt 0:02:00]} Nd7 {[%emt 0:01:01]} 36. Ke4 {[%emt 0:01:13]} Nb6 {[%emt 0:01:24]} 37. Kd4 {[%emt 0:03:20]} Kd6 {[%emt 0:00:15]} 38. Be2 {[%emt 0:00:13]} Na8 {[%emt 0:00:50]} 39. Bc4 {[%emt 0:04:06]} Nc7 {[%emt 0:00:03]} 40. f5 {[%emt 0:00:00]} Kc6 {[%emt 0:01:47]} 41. a4 {[%emt 0:01:43]} Kd6 {[%emt 0:02:30]} 42. g4 {[%emt 0:05:30]} Na8 {[%emt 0:00:30]} 43. Bxf7 {[%emt 0:13:41]} Nb6 {[%emt 0:06:30]} 44. Be8 {[%emt 0:00:30]} Nd5 {[%emt 0:01:30]} 45. Bb5 {[%emt 0:00:30]} h6 {[%emt 0:00:30]} 46. Be2 {[%emt 0:00:30]} Nb6 {[%emt 0:00:30]} 47. Bd1 {[%emt 0:00:30]} Nd7 {[%emt 0:02:52]} 48. Kc4 {[%emt 0:01:53]} Nc5 {[%emt 0:04:13]} 49. a5 {[%emt 0:03:56]} Na6 {[%emt 0:00:41]} 50. Bf3 {[%emt 0:01:02]} Nc7 {[%emt 0:00:02]} 51. Bb7 {[%emt 0:02:29]} Ne8 {[%emt 0:00:09]} 52. Kd4 {[%emt 0:01:52]} Nc7 {[%emt 0:00:16]} 53. Kc4 {[%emt 0:01:51]} Ne8 {[%emt 0:00:06]} 54. h3 {[%emt 0:00:38]} Nc7 {[%emt 0:00:07]} 55. h4 {[%emt 0:00:35]} Ne8 {[%emt 0:00:53]} 56. Kd4 {[%emt 0:00:13]} Nc7 {[%emt 0:00:09]} 57. Ke4 {[%emt 0:00:26]} Nb5 {[%emt 0:03:15]} 58. Kf4 {[%emt 0:00:21]} Nc7 {[%emt 0:01:39]} 59. g5 {[%emt 0:00:22]} hxg5+ {[%emt 0:00:10]} 60. hxg5 {[%emt 0:00:04]} Ne8 {[%emt 0:00:08]} 61. g6 {[%emt 0:02:37]} Ng7 {[%emt 0:00:06]} 62. Ke4 {[%emt 0:00:26]} Kc5 {[%emt 0:00:04]} 63. Bc8 {[%emt 0:01:14]} Nh5 {[%emt 0:00:09]} 64. Kd3 {[%emt 0:00:38]} Ng7 {[%emt 0:00:08]} 65. a6 {[%emt 0:00:36]} Nh5 {[%emt 0:00:07]} 66. Ke4 {[%emt 0:00:19]} Ng7 {[%emt 0:00:05]} 67. Be6 {[%emt 0:00:34]} Nh5 {[%emt 0:00:06]} 68. Ba2 {[%emt 0:00:36]} Ng7 {[%emt 0:00:15]} 69. Bb3 {[%emt 0:00:02]} Nh5 {[%emt 0:00:15]} 70. Ba2 {[%emt 0:00:03]} Ng7 {[%emt 0:00:03]} 71. Bg8 {[%emt 0:00:07]} Nh5 {[%emt 0:00:13]} 72. Be6 {[%emt 0:01:46]} Ng7 {[%emt 0:00:08]} 73. Kf4 {[%emt 0:00:43]} Nh5+ {[%emt 0:00:13]} 74. Kg4 {[%emt 0:00:00]} Ng7 {[%emt 0:00:02]} 75. Bc8 {[%emt 0:00:20]} Kd4 {[%emt 0:00:06]} 76. Kf3 {[%emt 0:00:45]} Kc5 {[%emt 0:00:15]} 77. Ke3 {[%emt 0:00:09]} Nh5 {[%emt 0:00:05]} 78. Kd3 {[%emt 0:00:01]} Ng7 {[%emt 0:00:09]} 79. Kc3 {[%emt 0:00:03]} Nh5 {[%emt 0:00:21]} 80. Kb3 {[%emt 0:01:04]} Ng7 {[%emt 0:00:30]} 81. Ka4 {[%emt 0:00:10]} Nh5 {[%emt 0:00:00]} 82. Be6 {[%emt 0:00:55]} 1/2-1/2